[Event "Early-Titled-Tuesday-Blitz-February-06-2024"]
[Site "Chess.com"]
[Date "2024.02.06"]
[Round "9"]
[White "Brahianzevich"]
[Black "laskakid"]
[Result "1-0"]
[WhiteElo "2437"]
[BlackElo "2323"]
[TimeControl "180+1"]
[EndTime "9:44:25 PST"]
[Termination "Brahianzevich won on time"]

1. e4 {[%clk 0:02:55.9]} 1... e5 {[%clk 0:03:00.1]} 2. Nf3 {[%clk 0:02:55.8]}
2... Nc6 {[%clk 0:03:00.6]} 3. Bb5 {[%clk 0:02:56.3]} 3... a6 {[%clk 0:03:00.9]}
4. Ba4 {[%clk 0:02:56.7]} 4... Nf6 {[%clk 0:03:01]} 5. O-O {[%clk 0:02:57]} 5...
d6 {[%clk 0:03:00.6]} 6. Re1 {[%clk 0:02:56.6]} 6... Bd7 {[%clk 0:03:00.4]} 7.
c3 {[%clk 0:02:56.5]} 7... g6 {[%clk 0:03:00.7]} 8. d4 {[%clk 0:02:54.8]} 8...
Bg7 {[%clk 0:03:00.7]} 9. Nbd2 {[%clk 0:02:54.2]} 9... O-O {[%clk 0:03:00.3]}
10. Nf1 {[%clk 0:02:51.5]} 10... exd4 {[%clk 0:02:41.3]} 11. cxd4 {[%clk
0:02:52.4]} 11... b5 {[%clk 0:02:39.6]} 12. Bc2 {[%clk 0:02:46.7]} 12... Bg4
{[%clk 0:02:34.8]} 13. Be3 {[%clk 0:02:39.5]} 13... Nh5 {[%clk 0:02:27.7]} 14.
a4 {[%clk 0:02:35.1]} 14... Bxf3 {[%clk 0:02:10]} 15. gxf3 {[%clk 0:02:26.9]}
15... Qf6 {[%clk 0:02:06.9]} 16. Ng3 {[%clk 0:02:17.6]} 16... Nxd4 {[%clk
0:01:53.3]} 17. Bxd4 {[%clk 0:02:13.5]} 17... Qxd4 {[%clk 0:01:52.2]} 18. Nxh5
{[%clk 0:02:14.2]} 18... gxh5 {[%clk 0:01:33.3]} 19. Qe2 {[%clk 0:02:12.9]}
19... Qxb2 {[%clk 0:01:24]} 20. Rab1 {[%clk 0:02:04.8]} 20... Qe5 {[%clk
0:01:17.9]} 21. axb5 {[%clk 0:02:05.2]} 21... axb5 {[%clk 0:01:13.1]} 22. Rxb5
{[%clk 0:02:06.1]} 22... Qf4 {[%clk 0:01:13.1]} 23. Rf5 {[%clk 0:02:01.7]} 23...
Qh4 {[%clk 0:01:09.5]} 24. Kh1 {[%clk 0:01:04.7]} 24... Be5 {[%clk 0:00:59.2]}
25. f4 {[%clk 0:01:03.1]} 25... Bxf4 {[%clk 0:00:56.8]} 26. Rxh5 {[%clk
0:01:03.2]} 26... Qe7 {[%clk 0:00:49.2]} 27. Qg4+ {[%clk 0:00:57]} 27... Kh8
{[%clk 0:00:45.5]} 28. Qxf4 {[%clk 0:00:55.7]} 28... Ra2 {[%clk 0:00:34.7]} 29.
Bb1 {[%clk 0:00:53.8]} 29... Ra4 {[%clk 0:00:31.6]} 30. Qf5 {[%clk 0:00:51.6]}
30... f6 {[%clk 0:00:28.2]} 31. e5 {[%clk 0:00:51.7]} 31... Rf7 {[%clk 0:00:26]}
32. e6 {[%clk 0:00:45.2]} 32... Rg7 {[%clk 0:00:25.8]} 33. Rg1 {[%clk
0:00:44.6]} 33... Rxg1+ {[%clk 0:00:17.2]} 34. Kxg1 {[%clk 0:00:45.5]} 34...
Qg7+ {[%clk 0:00:16.2]} 35. Kf1 {[%clk 0:00:40]} 35... Kg8 {[%clk 0:00:13.4]}
36. Rxh7 {[%clk 0:00:35.7]} 36... Qg4 {[%clk 0:00:12.9]} 37. Qxg4+ {[%clk
0:00:32.5]} 37... Rxg4 {[%clk 0:00:12.2]} 38. Rxc7 {[%clk 0:00:29.9]} 38... Rb4
{[%clk 0:00:11.5]} 39. Bg6 {[%clk 0:00:28.8]} 39... Rd4 {[%clk 0:00:06.5]} 40.
e7 {[%clk 0:00:28.9]} 1-0

[Event "Early-Titled-Tuesday-Blitz-February-06-2024"]
[Site "Chess.com"]
[Date "2024.02.06"]
[Round "9"]
[White "Evgeny81"]
[Black "soloderisas"]
[Result "1-0"]
[WhiteElo "2711"]
[BlackElo "2535"]
[TimeControl "180+1"]
[EndTime "9:44:26 PST"]
[Termination "Evgeny81 won by resignation"]

1. e4 {[%clk 0:03:00.9]} 1... e5 {[%clk 0:02:58.4]} 2. Nf3 {[%clk 0:03:00.3]}
2... Nc6 {[%clk 0:02:58.9]} 3. Bb5 {[%clk 0:03:00.3]} 3... a6 {[%clk 0:02:58.9]}
4. Ba4 {[%clk 0:03:00.2]} 4... Nf6 {[%clk 0:02:58.9]} 5. Qe2 {[%clk 0:03:00.6]}
5... b5 {[%clk 0:02:57.3]} 6. Bb3 {[%clk 0:03:00.4]} 6... Bc5 {[%clk 0:02:57.8]}
7. O-O {[%clk 0:02:59.1]} 7... d6 {[%clk 0:02:54.2]} 8. c3 {[%clk 0:02:57.1]}
8... h6 {[%clk 0:02:50.2]} 9. Rd1 {[%clk 0:02:55.1]} 9... Bb6 {[%clk 0:02:44.7]}
10. h3 {[%clk 0:02:54.2]} 10... Qe7 {[%clk 0:02:42]} 11. d4 {[%clk 0:02:50.3]}
11... Bb7 {[%clk 0:02:38.9]} 12. a4 {[%clk 0:02:38.9]} 12... O-O {[%clk
0:02:31]} 13. axb5 {[%clk 0:02:36.4]} 13... axb5 {[%clk 0:02:31.9]} 14. Rxa8
{[%clk 0:02:36.5]} 14... Bxa8 {[%clk 0:02:23.4]} 15. dxe5 {[%clk 0:02:28.3]}
15... Nxe5 {[%clk 0:02:17.3]} 16. Nxe5 {[%clk 0:02:14.2]} 16... Qxe5 {[%clk
0:02:16.6]} 17. Nd2 {[%clk 0:02:07.1]} 17... Nxe4 {[%clk 0:02:16]} 18. Nxe4
{[%clk 0:02:05.1]} 18... Qxe4 {[%clk 0:02:16.6]} 19. Qxe4 {[%clk 0:02:04.4]}
19... Bxe4 {[%clk 0:02:17.5]} 20. Re1 {[%clk 0:02:02.9]} 20... d5 {[%clk
0:01:41.8]} 21. Be3 {[%clk 0:01:57.4]} 21... Bxe3 {[%clk 0:01:40]} 22. Rxe3
{[%clk 0:01:58.3]} 22... c6 {[%clk 0:01:25.5]} 23. g4 {[%clk 0:01:57.2]} 23...
f5 {[%clk 0:01:19.2]} 24. f3 {[%clk 0:01:55.8]} 24... Bb1 {[%clk 0:01:16.7]} 25.
Re6 {[%clk 0:01:46.3]} 25... fxg4 {[%clk 0:01:07.5]} 26. fxg4 {[%clk 0:01:45.3]}
26... Kh7 {[%clk 0:00:47.5]} 27. Rxc6 {[%clk 0:01:42.9]} 27... Be4 {[%clk
0:00:47.2]} 28. Rc5 {[%clk 0:01:36.4]} 28... Rf3 {[%clk 0:00:28.4]} 29. Rxb5
{[%clk 0:01:35.5]} 29... Rxh3 {[%clk 0:00:22.2]} 30. Bxd5 {[%clk 0:01:34.1]}
30... Rg3+ {[%clk 0:00:17.7]} 31. Kf1 {[%clk 0:01:13]} 31... Bd3+ {[%clk
0:00:16.6]} 32. Kf2 {[%clk 0:01:13.2]} 32... Rxg4 {[%clk 0:00:14.8]} 33. Rb8
{[%clk 0:01:05.7]} 33... h5 {[%clk 0:00:14]} 34. b4 {[%clk 0:00:55.7]} 34... h4
{[%clk 0:00:14.1]} 35. Bg8+ {[%clk 0:00:49]} 35... Kh6 {[%clk 0:00:13.6]} 36.
Be6 {[%clk 0:00:49.9]} 36... Rf4+ {[%clk 0:00:12.7]} 37. Ke3 {[%clk 0:00:50]}
37... Re4+ {[%clk 0:00:12.7]} 38. Kxd3 {[%clk 0:00:49.8]} 38... Rxe6 {[%clk
0:00:13.3]} 39. Rh8+ {[%clk 0:00:49.1]} 39... Kg5 {[%clk 0:00:13.3]} 40. b5
{[%clk 0:00:44.1]} 40... Rh6 {[%clk 0:00:11.6]} 41. Rxh6 {[%clk 0:00:39.9]}
41... gxh6 {[%clk 0:00:10.6]} 42. Ke2 {[%clk 0:00:38.4]} 42... Kf4 {[%clk
0:00:09.8]} 43. b6 {[%clk 0:00:36.8]} 43... Kg3 {[%clk 0:00:06.1]} 44. b7 {[%clk
0:00:35.8]} 1-0

[Event "Early-Titled-Tuesday-Blitz-February-06-2024"]
[Site "Chess.com"]
[Date "2024.02.06"]
[Round "9"]
[White "SmirnovTimofey2000"]
[Black "campochess"]
[Result "0-1"]
[WhiteElo "1968"]
[BlackElo "2075"]
[TimeControl "180+1"]
[EndTime "9:44:27 PST"]
[Termination "campochess won on time"]

1. e4 {[%clk 0:02:58]} 1... c5 {[%clk 0:01:29.6]} 2. c3 {[%clk 0:02:51.9]} 2...
Nc6 {[%clk 0:01:29.5]} 3. d4 {[%clk 0:02:51.9]} 3... cxd4 {[%clk 0:01:29.6]} 4.
cxd4 {[%clk 0:02:52.8]} 4... d5 {[%clk 0:01:29.5]} 5. exd5 {[%clk 0:02:52.3]}
5... Qxd5 {[%clk 0:01:29.2]} 6. Nf3 {[%clk 0:02:52.8]} 6... Bg4 {[%clk 0:01:27]}
7. Nc3 {[%clk 0:02:50.5]} 7... Qa5 {[%clk 0:01:26.2]} 8. d5 {[%clk 0:02:45.3]}
8... Rd8 {[%clk 0:01:25.3]} 9. Bb5 {[%clk 0:02:37.3]} 9... a6 {[%clk 0:01:22.6]}
10. Bxc6+ {[%clk 0:01:56]} 10... bxc6 {[%clk 0:01:21.1]} 11. O-O {[%clk
0:01:44.5]} 11... Nf6 {[%clk 0:01:20.7]} 12. Qb3 {[%clk 0:01:36.9]} 12... Bxf3
{[%clk 0:01:17.4]} 13. gxf3 {[%clk 0:01:37.8]} 13... Nxd5 {[%clk 0:01:12.9]} 14.
Rd1 {[%clk 0:01:33.2]} 14... e6 {[%clk 0:01:12.7]} 15. Ne4 {[%clk 0:01:26.3]}
15... Be7 {[%clk 0:01:08.5]} 16. Bd2 {[%clk 0:01:17.8]} 16... Qb5 {[%clk
0:01:07.3]} 17. Qc2 {[%clk 0:01:11.5]} 17... O-O {[%clk 0:01:05.1]} 18. a4
{[%clk 0:01:10.7]} 18... Qb7 {[%clk 0:01:03.3]} 19. Nc5 {[%clk 0:01:04.6]} 19...
Qc8 {[%clk 0:01:00.4]} 20. b4 {[%clk 0:00:56.6]} 20... e5 {[%clk 0:01:00.1]} 21.
Kh1 {[%clk 0:00:52]} 21... Qh3 {[%clk 0:00:59.3]} 22. Qe4 {[%clk 0:00:43.8]}
22... Rd6 {[%clk 0:00:58.8]} 23. Rg1 {[%clk 0:00:37]} 23... Rh6 {[%clk
0:00:57.6]} 24. Rg2 {[%clk 0:00:34.7]} 24... f5 {[%clk 0:00:57.4]} 25. Qxe5
{[%clk 0:00:32.9]} 25... Qxf3 {[%clk 0:00:57]} 26. Bxh6 {[%clk 0:00:27.8]} 26...
Bf6 {[%clk 0:00:51.3]} 27. Qe6+ {[%clk 0:00:17.9]} 27... Kh8 {[%clk 0:00:49.7]}
28. Bxg7+ {[%clk 0:00:17.4]} 28... Bxg7 {[%clk 0:00:47]} 29. Rg1 {[%clk
0:00:11.1]} 29... Nf4 {[%clk 0:00:46.8]} 30. Qe7 {[%clk 0:00:06]} 30... Nxg2
{[%clk 0:00:45]} 31. Rxg2 {[%clk 0:00:06.2]} 31... Qd1+ {[%clk 0:00:44.5]} 32.
Rg1 {[%clk 0:00:06.6]} 32... Qf3+ {[%clk 0:00:44.5]} 33. Rg2 {[%clk 0:00:07.1]}
33... Rg8 {[%clk 0:00:43.2]} 34. Ne6 {[%clk 0:00:06.4]} 34... Bc3 {[%clk
0:00:37]} 35. Ng5 {[%clk 0:00:04.7]} 35... Qd1+ {[%clk 0:00:31.2]} 36. Rg1
{[%clk 0:00:04.5]} 36... Qd5+ {[%clk 0:00:29.6]} 37. f3 {[%clk 0:00:02.1]} 37...
Rg7 {[%clk 0:00:28.5]} 0-1

[Event "Early-Titled-Tuesday-Blitz-February-06-2024"]
[Site "Chess.com"]
[Date "2024.02.06"]
[Round "9"]
[White "Njal28"]
[Black "DarkAlekhine"]
[Result "0-1"]
[WhiteElo "3050"]
[BlackElo "2763"]
[TimeControl "180+1"]
[EndTime "9:44:29 PST"]
[Termination "DarkAlekhine won on time"]

1. d4 {[%clk 0:03:00.9]} 1... Nf6 {[%clk 0:03:00.3]} 2. c4 {[%clk 0:02:59.5]}
2... e6 {[%clk 0:03:00]} 3. Nc3 {[%clk 0:02:59.8]} 3... Bb4 {[%clk 0:03:00]} 4.
e3 {[%clk 0:03:00.3]} 4... O-O {[%clk 0:02:59.6]} 5. a3 {[%clk 0:03:00.5]} 5...
Bxc3+ {[%clk 0:02:59]} 6. bxc3 {[%clk 0:03:01.4]} 6... b6 {[%clk 0:02:59.3]} 7.
Ne2 {[%clk 0:03:02.3]} 7... Nc6 {[%clk 0:02:58.8]} 8. Ng3 {[%clk 0:03:03.2]}
8... Ba6 {[%clk 0:02:58.4]} 9. e4 {[%clk 0:03:03.8]} 9... Na5 {[%clk 0:02:57.5]}
10. Bg5 {[%clk 0:03:02.6]} 10... h6 {[%clk 0:02:57.6]} 11. h4 {[%clk 0:02:57]}
11... d6 {[%clk 0:02:16.2]} 12. Qf3 {[%clk 0:02:49.7]} 12... Bxc4 {[%clk
0:01:34.4]} 13. Rd1 {[%clk 0:02:24.7]} 13... Bxf1 {[%clk 0:00:54.7]} 14. Kxf1
{[%clk 0:02:25.6]} 14... Nc4 {[%clk 0:00:47.9]} 15. Nh5 {[%clk 0:01:23.9]} 15...
hxg5 {[%clk 0:00:47.4]} 16. hxg5 {[%clk 0:01:24.8]} 16... Nh7 {[%clk 0:00:47.6]}
17. Qh3 {[%clk 0:01:19.7]} 17... Re8 {[%clk 0:00:47]} 18. Nf6+ {[%clk
0:00:24.3]} 18... gxf6 {[%clk 0:00:45.8]} 19. Qxh7+ {[%clk 0:00:23]} 19... Kf8
{[%clk 0:00:45.6]} 20. g6 {[%clk 0:00:03.9]} 20... Qd7 {[%clk 0:00:44.5]} 21.
Rd3 {[%clk 0:00:01.6]} 21... d5 {[%clk 0:00:26.4]} 22. Rg3 {[%clk 0:00:01.4]}
22... Ke7 {[%clk 0:00:20.7]} 23. Qxf7+ {[%clk 0:00:01.9]} 23... Kd6 {[%clk
0:00:20.9]} 24. Qxf6 {[%clk 0:00:02.8]} 24... Nd2+ {[%clk 0:00:18.3]} 25. Ke2
{[%clk 0:00:03]} 25... Nxe4 {[%clk 0:00:19.2]} 26. Qe5+ {[%clk 0:00:03.3]} 26...
Kc6 {[%clk 0:00:19.7]} 27. Rh7 {[%clk 0:00:03.9]} 27... Nxg3+ {[%clk 0:00:18.8]}
28. Qxg3 {[%clk 0:00:04.1]} 28... Qd6 {[%clk 0:00:19.4]} 29. Qd3 {[%clk
0:00:03.7]} 29... Re7 {[%clk 0:00:17.1]} 30. Rh5 {[%clk 0:00:01.8]} 30... Kb7
{[%clk 0:00:15.2]} 31. c4 {[%clk 0:00:02.5]} 31... dxc4 {[%clk 0:00:14.2]} 32.
Qe4+ {[%clk 0:00:03.2]} 32... Qc6 {[%clk 0:00:14.1]} 0-1

[Event "Early-Titled-Tuesday-Blitz-February-06-2024"]
[Site "Chess.com"]
[Date "2024.02.06"]
[Round "9"]
[White "yobdc"]
[Black "GelmanAlexander"]
[Result "0-1"]
[WhiteElo "2604"]
[BlackElo "2778"]
[TimeControl "180+1"]
[EndTime "9:44:30 PST"]
[Termination "GelmanAlexander won on time"]

1. c4 {[%clk 0:02:57.2]} 1... c5 {[%clk 0:02:59.9]} 2. g3 {[%clk 0:02:56.6]}
2... d6 {[%clk 0:03:00.1]} 3. Bg2 {[%clk 0:02:57]} 3... e6 {[%clk 0:03:00.7]} 4.
Nc3 {[%clk 0:02:57.3]} 4... Nf6 {[%clk 0:03:01.3]} 5. Nf3 {[%clk 0:02:57.8]}
5... Be7 {[%clk 0:03:01.5]} 6. O-O {[%clk 0:02:57.9]} 6... O-O {[%clk
0:03:01.8]} 7. b3 {[%clk 0:02:58.3]} 7... a6 {[%clk 0:03:01.9]} 8. Bb2 {[%clk
0:02:58.9]} 8... Nbd7 {[%clk 0:03:02.3]} 9. e3 {[%clk 0:02:59.4]} 9... Qc7
{[%clk 0:03:01.8]} 10. d4 {[%clk 0:02:59.2]} 10... cxd4 {[%clk 0:03:02.1]} 11.
Nxd4 {[%clk 0:02:58.7]} 11... Ne5 {[%clk 0:03:02]} 12. Qe2 {[%clk 0:02:58.5]}
12... Bd7 {[%clk 0:03:02.3]} 13. Rac1 {[%clk 0:02:58.7]} 13... Rac8 {[%clk
0:03:02.6]} 14. Rfd1 {[%clk 0:02:58.7]} 14... Rfd8 {[%clk 0:03:02.2]} 15. h3
{[%clk 0:02:58.4]} 15... Qb8 {[%clk 0:03:02]} 16. a4 {[%clk 0:02:51.4]} 16...
Qc7 {[%clk 0:02:58.8]} 17. f4 {[%clk 0:02:48.9]} 17... Ng6 {[%clk 0:02:58.8]}
18. Kh2 {[%clk 0:02:43.3]} 18... h5 {[%clk 0:02:58]} 19. Nf3 {[%clk 0:02:39.5]}
19... Qb6 {[%clk 0:02:57.4]} 20. Nd2 {[%clk 0:02:28.2]} 20... Bc6 {[%clk
0:02:53.2]} 21. e4 {[%clk 0:02:28.1]} 21... h4 {[%clk 0:02:52]} 22. f5 {[%clk
0:01:52.4]} 22... hxg3+ {[%clk 0:02:51]} 23. Kxg3 {[%clk 0:01:53.3]} 23... Ne5
{[%clk 0:02:28]} 24. Kh2 {[%clk 0:01:52.7]} 24... Re8 {[%clk 0:02:11.1]} 25.
fxe6 {[%clk 0:01:50.8]} 25... fxe6 {[%clk 0:02:12]} 26. Rg1 {[%clk 0:01:50.4]}
26... d5 {[%clk 0:01:33.7]} 27. Nxd5 {[%clk 0:01:36]} 27... exd5 {[%clk
0:01:31.1]} 28. Bxe5 {[%clk 0:01:33.5]} 28... dxe4 {[%clk 0:01:28.3]} 29. Bxe4
{[%clk 0:01:17.6]} 29... Bd8 {[%clk 0:01:14.7]} 30. Bxf6 {[%clk 0:00:24.5]}
30... Bxf6 {[%clk 0:01:11.3]} 31. Rg4 {[%clk 0:00:24.3]} 31... Rcd8 {[%clk
0:00:59.7]} 32. Rcg1 {[%clk 0:00:17.6]} 32... Rxd2 {[%clk 0:00:51.7]} 33. Qxd2
{[%clk 0:00:17.6]} 33... Bxe4 {[%clk 0:00:46.6]} 34. h4 {[%clk 0:00:02.6]} 34...
Be5+ {[%clk 0:00:36.1]} 35. Kh3 {[%clk 0:00:02.9]} 35... Bf5 {[%clk 0:00:34.5]}
36. Qg5 {[%clk 0:00:02.4]} 36... Bxg4+ {[%clk 0:00:26]} 37. Rxg4 {[%clk
0:00:03.3]} 37... Qf2 {[%clk 0:00:20.2]} 38. Re4 {[%clk 0:00:03.2]} 38... Qf3+
{[%clk 0:00:18]} 0-1

[Event "Early-Titled-Tuesday-Blitz-February-06-2024"]
[Site "Chess.com"]
[Date "2024.02.06"]
[Round "9"]
[White "KubaGepard"]
[Black "ccccvhhhj"]
[Result "0-1"]
[WhiteElo "2545"]
[BlackElo "2453"]
[TimeControl "180+1"]
[EndTime "9:44:31 PST"]
[Termination "ccccvhhhj won by resignation"]

1. e3 {[%clk 0:02:58.4]} 1... e5 {[%clk 0:02:55.3]} 2. c4 {[%clk 0:02:54.9]}
2... f5 {[%clk 0:02:53.7]} 3. Nc3 {[%clk 0:02:52.2]} 3... Nf6 {[%clk 0:02:53.9]}
4. d4 {[%clk 0:02:49.4]} 4... e4 {[%clk 0:02:51.7]} 5. Bd2 {[%clk 0:02:44.4]}
5... Be7 {[%clk 0:02:49.9]} 6. Nge2 {[%clk 0:02:41]} 6... O-O {[%clk 0:02:49.6]}
7. h4 {[%clk 0:02:39.3]} 7... Kh8 {[%clk 0:02:40.7]} 8. Nf4 {[%clk 0:02:38.5]}
8... Bd6 {[%clk 0:02:28.3]} 9. Nce2 {[%clk 0:02:27.9]} 9... c5 {[%clk
0:02:06.2]} 10. b4 {[%clk 0:02:06.2]} 10... cxd4 {[%clk 0:02:02.4]} 11. exd4
{[%clk 0:02:03.3]} 11... Nc6 {[%clk 0:01:57.2]} 12. a3 {[%clk 0:02:01.2]} 12...
Bxf4 {[%clk 0:01:50.4]} 13. Bxf4 {[%clk 0:01:59.7]} 13... d5 {[%clk 0:01:49.9]}
14. c5 {[%clk 0:01:51.8]} 14... a5 {[%clk 0:01:42.8]} 15. b5 {[%clk 0:01:50.3]}
15... Ne7 {[%clk 0:01:39.6]} 16. h5 {[%clk 0:01:44.1]} 16... Bd7 {[%clk
0:01:18.4]} 17. a4 {[%clk 0:01:38.5]} 17... Be8 {[%clk 0:01:16]} 18. Ng3 {[%clk
0:01:37.3]} 18... g5 {[%clk 0:00:38.8]} 19. hxg6 {[%clk 0:01:26.2]} 19... Bxg6
{[%clk 0:00:36.3]} 20. Qd2 {[%clk 0:01:20.1]} 20... Kg8 {[%clk 0:00:34.8]} 21.
Be5 {[%clk 0:01:16.5]} 21... Nd7 {[%clk 0:00:31]} 22. Bd6 {[%clk 0:01:16.3]}
22... f4 {[%clk 0:00:26.8]} 23. Bxf4 {[%clk 0:01:14.9]} 23... Nf6 {[%clk
0:00:14.9]} 24. Be2 {[%clk 0:01:08.1]} 24... Qd7 {[%clk 0:00:15.1]} 25. Be5
{[%clk 0:01:03.4]} 25... Nf5 {[%clk 0:00:15.1]} 26. Qh6 {[%clk 0:00:44.8]} 26...
Nxh6 {[%clk 0:00:14.9]} 27. Rxh6 {[%clk 0:00:42.8]} 27... Qg7 {[%clk 0:00:14.4]}
28. Rh1 {[%clk 0:00:41.9]} 28... Qe7 {[%clk 0:00:13.7]} 29. Bd6 {[%clk
0:00:40.8]} 29... Qe6 {[%clk 0:00:13.6]} 30. O-O-O {[%clk 0:00:39.4]} 30... Rfd8
{[%clk 0:00:12.7]} 31. Be5 {[%clk 0:00:38.3]} 31... Nd7 {[%clk 0:00:13.2]} 32.
Bf4 {[%clk 0:00:38.2]} 32... Rf8 {[%clk 0:00:13]} 33. Be3 {[%clk 0:00:37.8]}
33... Rac8 {[%clk 0:00:07]} 34. Kb1 {[%clk 0:00:36.9]} 34... Qf7 {[%clk
0:00:07.5]} 35. Rh4 {[%clk 0:00:36.2]} 35... Nf6 {[%clk 0:00:07.7]} 36. Rdh1
{[%clk 0:00:35.6]} 36... b6 {[%clk 0:00:07.6]} 37. c6 {[%clk 0:00:35.3]} 37...
Qe7 {[%clk 0:00:07.3]} 38. Bd2 {[%clk 0:00:29.1]} 38... Qa3 {[%clk 0:00:07.5]}
39. Bd1 {[%clk 0:00:29]} 39... e3+ {[%clk 0:00:06.6]} 40. Bc2 {[%clk 0:00:29.1]}
40... Qb3+ {[%clk 0:00:05.6]} 41. Ka1 {[%clk 0:00:29.3]} 41... Bxc2 {[%clk
0:00:05.8]} 0-1

[Event "Early-Titled-Tuesday-Blitz-February-06-2024"]
[Site "Chess.com"]
[Date "2024.02.06"]
[Round "9"]
[White "edgarhay012"]
[Black "Alen_Yeremyann"]
[Result "1-0"]
[WhiteElo "2555"]
[BlackElo "2715"]
[TimeControl "180+1"]
[EndTime "9:44:32 PST"]
[Termination "edgarhay012 won by resignation"]

1. e4 {[%clk 0:03:00.9]} 1... c5 {[%clk 0:02:56.8]} 2. Nc3 {[%clk 0:02:59.7]}
2... Nc6 {[%clk 0:02:54.5]} 3. Bb5 {[%clk 0:02:59.9]} 3... Nd4 {[%clk
0:02:54.9]} 4. Bc4 {[%clk 0:03:00.4]} 4... a6 {[%clk 0:02:55.6]} 5. Nge2 {[%clk
0:02:45.4]} 5... Nxe2 {[%clk 0:02:51.2]} 6. Qxe2 {[%clk 0:02:43.9]} 6... b5
{[%clk 0:02:51.7]} 7. Bxf7+ {[%clk 0:02:36.4]} 7... Kxf7 {[%clk 0:02:50.1]} 8.
Qh5+ {[%clk 0:02:37]} 8... g6 {[%clk 0:02:40.5]} 9. Qd5+ {[%clk 0:02:36.5]} 9...
e6 {[%clk 0:02:41.3]} 10. Qxa8 {[%clk 0:02:36.5]} 10... Qc7 {[%clk 0:02:42.1]}
11. d4 {[%clk 0:01:54]} 11... cxd4 {[%clk 0:02:19.5]} 12. Nd5 {[%clk 0:01:46.1]}
12... Qxc2 {[%clk 0:02:04.9]} 13. O-O {[%clk 0:01:36.7]} 13... Bd6 {[%clk
0:01:12]} 14. Bf4 {[%clk 0:01:27.1]} 14... Bxf4 {[%clk 0:01:06.6]} 15. Nxf4
{[%clk 0:01:28]} 15... Ne7 {[%clk 0:01:07]} 16. Rac1 {[%clk 0:01:21.1]} 16...
Qxb2 {[%clk 0:01:07]} 17. Qa7 {[%clk 0:01:05.4]} 17... Qd2 {[%clk 0:00:57.4]}
18. Qc7 {[%clk 0:00:57.8]} 18... Rf8 {[%clk 0:00:48.1]} 19. Rfd1 {[%clk
0:00:57.7]} 19... Qxa2 {[%clk 0:00:48.3]} 20. Nd3 {[%clk 0:00:55]} 20... Kg8
{[%clk 0:00:48.2]} 21. Qd6 {[%clk 0:00:54.2]} 21... Nc6 {[%clk 0:00:48]} 22. h4
{[%clk 0:00:41.8]} 22... Qe2 {[%clk 0:00:46.5]} 23. Qg3 {[%clk 0:00:38.5]} 23...
Qxe4 {[%clk 0:00:45.1]} 24. Re1 {[%clk 0:00:38.9]} 24... Qf5 {[%clk 0:00:44.7]}
25. Rc5 {[%clk 0:00:39.1]} 25... Qf6 {[%clk 0:00:38.7]} 26. h5 {[%clk
0:00:39.5]} 26... Ne7 {[%clk 0:00:32.8]} 27. Rg5 {[%clk 0:00:36.9]} 27... Nf5
{[%clk 0:00:32.2]} 28. Qg4 {[%clk 0:00:36.6]} 28... Kg7 {[%clk 0:00:24.6]} 29.
hxg6 {[%clk 0:00:35.7]} 29... h6 {[%clk 0:00:25.2]} 30. Rh5 {[%clk 0:00:34.9]}
30... d6 {[%clk 0:00:25.9]} 31. Rc1 {[%clk 0:00:21.9]} 31... e5 {[%clk
0:00:18.8]} 32. Rc7+ {[%clk 0:00:21]} 32... Kg8 {[%clk 0:00:19.5]} 33. Rxc8
{[%clk 0:00:18.3]} 33... Rxc8 {[%clk 0:00:15.5]} 34. Rxf5 {[%clk 0:00:18.6]}
34... Qd8 {[%clk 0:00:12.2]} 35. Rf7 {[%clk 0:00:17.8]} 35... Qe8 {[%clk
0:00:11.4]} 36. Qf5 {[%clk 0:00:16]} 36... e4 {[%clk 0:00:11.6]} 37. Qf6 {[%clk
0:00:15.9]} 1-0

[Event "Early-Titled-Tuesday-Blitz-February-06-2024"]
[Site "Chess.com"]
[Date "2024.02.06"]
[Round "9"]
[White "Flawless_Fighter"]
[Black "tusplingher"]
[Result "1-0"]
[WhiteElo "2717"]
[BlackElo "2451"]
[TimeControl "180+1"]
[EndTime "9:44:34 PST"]
[Termination "Flawless_Fighter won by resignation"]

1. e4 {[%clk 0:03:00.9]} 1... c5 {[%clk 0:02:59.5]} 2. Nf3 {[%clk 0:03:01.2]}
2... d6 {[%clk 0:02:59.3]} 3. d4 {[%clk 0:03:00.8]} 3... cxd4 {[%clk 0:02:58.7]}
4. Nxd4 {[%clk 0:03:01.7]} 4... Nf6 {[%clk 0:02:59.4]} 5. Nc3 {[%clk 0:03:02.1]}
5... a6 {[%clk 0:02:59.5]} 6. Be2 {[%clk 0:02:58.5]} 6... e5 {[%clk 0:02:58]} 7.
Nb3 {[%clk 0:02:58.7]} 7... Be7 {[%clk 0:02:56.8]} 8. O-O {[%clk 0:02:58.3]}
8... O-O {[%clk 0:02:56.6]} 9. Be3 {[%clk 0:02:55.4]} 9... Be6 {[%clk
0:02:56.4]} 10. Qd2 {[%clk 0:02:52.4]} 10... Nbd7 {[%clk 0:02:54.7]} 11. Rfd1
{[%clk 0:02:50.9]} 11... Rc8 {[%clk 0:02:53.8]} 12. f3 {[%clk 0:02:47.1]} 12...
Nb6 {[%clk 0:02:51.6]} 13. a4 {[%clk 0:02:42]} 13... Nc4 {[%clk 0:02:51]} 14.
Bxc4 {[%clk 0:02:42.4]} 14... Bxc4 {[%clk 0:02:46.5]} 15. Qf2 {[%clk 0:02:41.8]}
15... Qc7 {[%clk 0:02:31.6]} 16. Bb6 {[%clk 0:02:38]} 16... Qb8 {[%clk
0:02:31.2]} 17. a5 {[%clk 0:02:29]} 17... Bd8 {[%clk 0:02:13.8]} 18. Na4 {[%clk
0:02:18.9]} 18... d5 {[%clk 0:02:06.8]} 19. Nbc5 {[%clk 0:02:02.1]} 19... dxe4
{[%clk 0:01:57.1]} 20. fxe4 {[%clk 0:01:59.5]} 20... Bb5 {[%clk 0:01:50.9]} 21.
Bxd8 {[%clk 0:01:43]} 21... Rcxd8 {[%clk 0:01:46.7]} 22. Nb6 {[%clk 0:01:42.1]}
22... Bc6 {[%clk 0:01:41.9]} 23. Qf5 {[%clk 0:01:37.3]} 23... Rxd1+ {[%clk
0:01:36.1]} 24. Rxd1 {[%clk 0:01:36.7]} 24... Rd8 {[%clk 0:01:35.1]} 25. Rd3
{[%clk 0:01:31.1]} 25... h6 {[%clk 0:01:22.8]} 26. h3 {[%clk 0:01:30]} 26...
Rxd3 {[%clk 0:00:55.4]} 27. cxd3 {[%clk 0:01:29.7]} 27... Qd6 {[%clk 0:00:55.8]}
28. Qf2 {[%clk 0:01:03.8]} 28... Bb5 {[%clk 0:00:52.5]} 29. Qe3 {[%clk
0:00:59.5]} 29... Qc6 {[%clk 0:00:39.7]} 30. b4 {[%clk 0:00:57.8]} 30... Ne8
{[%clk 0:00:37.1]} 31. Kh2 {[%clk 0:00:56]} 31... Nc7 {[%clk 0:00:37]} 32. Qg3
{[%clk 0:00:49.8]} 32... f6 {[%clk 0:00:24.4]} 33. Qg4 {[%clk 0:00:42.9]} 33...
Ne8 {[%clk 0:00:21.5]} 34. h4 {[%clk 0:00:35.5]} 34... Kf7 {[%clk 0:00:20]} 35.
h5 {[%clk 0:00:34.8]} 35... Ke7 {[%clk 0:00:19.5]} 36. Qg6 {[%clk 0:00:29.8]}
36... Kf8 {[%clk 0:00:16.8]} 37. Qf5 {[%clk 0:00:29.1]} 37... Ke7 {[%clk
0:00:16]} 38. Nd5+ {[%clk 0:00:28.1]} 38... Kf8 {[%clk 0:00:15.6]} 39. Ne6+
{[%clk 0:00:26]} 39... Kg8 {[%clk 0:00:13]} 40. Ne7+ {[%clk 0:00:25.8]} 40...
Kf7 {[%clk 0:00:11.5]} 41. Nxc6 {[%clk 0:00:26.7]} 41... Bxc6 {[%clk 0:00:12.1]}
42. Nd8+ {[%clk 0:00:26.2]} 42... Ke7 {[%clk 0:00:12.4]} 43. Nxc6+ {[%clk
0:00:27.1]} 1-0